fUST/lending_fUST_20250701
["ID","MTS","AMOUNT","RATE_DAILY","PERIOD"]
[368888929,1751385044052,-151.0,0.00021635,2]
[368888931,1751385044061,-151.0,0.00021635,2]
[368888933,1751385044071,-151.0,0.00021635,2]
[368888935,1751385044080,-151.0,0.00021635,2]
[368888937,1751385044091,-151.0,0.00021635,2]
[368888939,1751385044100,-500.0,0.00021635,2]
[368888941,1751385044110,-500.0,0.00021663,2]
[368888943,1751385044119,-151.0,0.00021663,2]
[368888945,1751385044130,-500.0,0.00021663,2]
[368888947,1751385044139,-151.0,0.00021663,2]
[368888950,1751385044149,-151.0,0.00021663,2]
[368888951,1751385044158,-151.0,0.00021663,2]
[368888954,1751385044168,-151.0,0.00021663,2]
[368888955,1751385044177,-151.0,0.00021663,2]
[368888958,1751385044187,-151.0,0.00021663,2]
[368888960,1751385044196,-500.0,0.0002169,2]
[368888962,1751385044206,-151.0,0.0002169,2]
[368888964,1751385044215,-500.0,0.0002169,2]
[368888966,1751385044224,-151.0,0.0002169,2]
[368888968,1751385044235,-198.0,0.0002169,2]
[368888970,1751385044244,-151.0,0.0002169,2]
[368888972,1751385044253,-151.0,0.0002169,2]
[368888974,1751385044263,-198.0,0.0002169,2]
[368888976,1751385044272,-500.0,0.00021718,2]
[368888978,1751385044282,-151.0,0.00021718,2]
[368888980,1751385044292,-500.0,0.00021718,2]
[368888996,1751385044434,-151.0,0.00021718,2]
[368888999,1751385044444,-151.0,0.00021718,2]
[368889001,1751385044454,-3.79949158,0.00021718,2]
[368889003,1751385044467,-147.20050842,0.00021718,2]
[368889005,1751385044477,-612.34,0.00021733,2]
[368889007,1751385044486,-568.19,0.00021733,2]
[368889009,1751385044496,-486.05,0.00021734,2]
[368889011,1751385044506,-813.8,0.00021734,2]
[368889013,1751385044516,-465.37,0.00021734,2]
[368889015,1751385044525,-607.82,0.00021734,2]
[368889017,1751385044535,-460.0,0.00021734,2]
[368889019,1751385044544,-460.0,0.00021734,2]
[368889021,1751385044553,-460.0,0.00021734,2]
[368889023,1751385044563,-460.0,0.00021735,2]
[368889025,1751385044573,-580.678152,0.00021735,2]
[368889027,1751385044582,-500.0,0.00021745,2]
[368889029,1751385044592,-245.0,0.00021745,2]
[368889031,1751385044602,-500.0,0.00021745,2]
[368889033,1751385044612,-245.0,0.00021745,2]
[368889035,1751385044622,-163.76978994,0.00021745,2]
[368889037,1751385044631,-245.0,0.00021745,2]
[368889039,1751385044641,-491.05630435,0.00021762,5]
[368889041,1751385044650,-500.0,0.00021772,2]
[368889043,1751385044660,-500.0,0.000218,2]
[368889046,1751385044670,-153.21834357,0.00021827,2]
[368889048,1751385044679,-491.05630435,0.00021969,6]
[368889049,1751385044688,-500.0,0.00021999,2]
[368889052,1751385044698,-793.3,0.00022,2]
[368889054,1751385044709,-150.0,0.00022,2]
[368889056,1751385044719,-178.0,0.00022,2]
[368889058,1751385044730,-168.0,0.00022,2]
[368889060,1751385044739,-4395.16,0.00022,7]
[368889062,1751385044749,-612.34,0.00022007,2]
[368889064,1751385044759,-568.19,0.00022007,2]
[368889066,1751385044770,-486.05,0.00022008,2]
[368889068,1751385044780,-813.8,0.00022008,2]
[368889070,1751385044791,-465.37,0.00022008,2]
[368889072,1751385044801,-607.82,0.00022008,2]
[368889074,1751385044811,-460.0,0.00022008,2]
[368889075,1751385044820,-460.0,0.00022008,2]
[368889076,1751385044830,-584.1,0.00022008,2]
[368889077,1751385044841,-460.0,0.00022009,2]
[368889078,1751385044851,-491.05630435,0.00022176,6]
[368889079,1751385044860,-207.4,0.00022203,2]
[368889080,1751385044870,-500.0,0.00022203,2]
[368889081,1751385044879,-500.0,0.00022203,2]
[368889082,1751385044889,-500.0,0.00022203,2]
[368889083,1751385044898,-500.0,0.00022203,2]
[368889084,1751385044908,-5000.0,0.00022203,2]
[368889085,1751385044918,-500.0,0.00022203,2]
[368889086,1751385044927,-500.0,0.00022203,2]
[368889087,1751385044937,-690.642,0.00022203,2]
[368889088,1751385044946,-1971.95919631,0.00022203,2]
[368889089,1751385044956,-500.0,0.00022203,2]
[368889090,1751385044966,-500.0,0.00022203,2]
[368889091,1751385044977,-500.0,0.00022203,2]
[368889092,1751385044987,-500.0,0.00022203,2]
[368889093,1751385044996,-500.0,0.00022203,2]
[368889095,1751385045006,-500.0,0.00022203,2]
[368889097,1751385045016,-500.0,0.00022203,2]
[368889099,1751385045026,-500.0,0.00022203,2]
[368889101,1751385045035,-500.0,0.00022203,2]
[368889103,1751385045045,-500.0,0.00022203,2]
[368889105,1751385045054,-500.0,0.00022203,2]
[368889107,1751385045063,-500.0,0.00022203,2]
[368889110,1751385045073,-500.0,0.00022203,2]
[368889111,1751385045084,-500.0,0.00022203,2]
[368889113,1751385045094,-500.0,0.00022203,2]
[368889115,1751385045103,-500.0,0.00022203,2]
[368889118,1751385045113,-500.0,0.00022203,2]
[368889120,1751385045122,-500.0,0.00022203,2]
[368889122,1751385045132,-500.0,0.00022203,2]
[368889124,1751385045141,-25000.0,0.00022203,2]
[368889125,1751385045151,-10916.57831657,0.00022203,2]
[368889127,1751385045160,-500.0,0.00022203,2]
[368889129,1751385045169,-500.0,0.00022203,2]
[368889130,1751385045179,-500.0,0.00022203,2]
[368889131,1751385045188,-500.0,0.00022203,2]
[368889132,1751385045199,-500.0,0.00022203,2]
[368889133,1751385045208,-500.0,0.0002224,2]
[368889134,1751385045219,-584.35,0.00022241,2]
[368889135,1751385045228,-1000.0,0.00022241,2]
[368889136,1751385045238,-1000.0,0.00022241,2]
[368889137,1751385045248,-1000.0,0.00022241,2]
[368889138,1751385045258,-1000.0,0.00022241,2]
[368889139,1751385045267,-446.17332533,0.00022241,2]
[368889140,1751385045276,-459.52007954,0.00022258,2]
[368889141,1751385045286,-441.54162117,0.00022273,2]
[368889142,1751385045296,-500.0,0.00022273,2]
[368889143,1751385045306,-500.0,0.00022273,2]
[368889144,1751385045315,-500.0,0.00022273,2]
[368889145,1751385045324,-500.0,0.00022273,2]
[368889146,1751385045334,-500.0,0.00022273,2]
[368889147,1751385045343,-290.19425268,0.00022273,2]
[368889148,1751385045352,-500.0,0.00022273,2]
[368889149,1751385045362,-612.34,0.00022281,2]
[368889150,1751385045372,-568.19,0.00022281,2]
[368889151,1751385045381,-486.05,0.00022282,2]
[368889152,1751385045391,-813.8,0.00022282,2]
[368889153,1751385045401,-465.37,0.00022282,2]
[368889154,1751385045410,-607.82,0.00022282,2]
[368889155,1751385045420,-460.0,0.00022282,2]
[368889156,1751385045430,-460.0,0.00022282,2]
[368889157,1751385045440,-460.0,0.00022283,2]
[368889158,1751385045450,-36591.05,0.000223,7]
[368889159,1751385045460,-847.53272281,0.000223,7]
[368889160,1751385045470,-491.05630435,0.00022383,7]
[368889161,1751385045479,-1058.22,0.000225,7]
[368889162,1751385045489,-500.0,0.00022506,2]
[368889163,1751385045499,-460.0,0.00022506,2]
[368889164,1751385045508,-460.0,0.00022506,2]
[368889165,1751385045519,-500.0,0.00022506,2]
[368889166,1751385045528,-460.0,0.00022506,2]
[368889167,1751385045538,-460.0,0.00022506,2]
[368889168,1751385045548,-592.96501776,0.00022506,2]
[368889169,1751385045558,-460.0,0.00022506,2]
[368889170,1751385045567,-500.0,0.00022506,2]
[368889171,1751385045578,-460.0,0.00022506,2]
[368889172,1751385045587,-461.79837303,0.00022506,2]
[368889173,1751385045597,-460.0,0.00022506,2]
[368889174,1751385045607,-306.0,0.00022507,2]
[368889175,1751385045616,-292.82154758,0.00022545,2]
[368889176,1751385045626,-612.34,0.00022555,2]
[368889177,1751385045636,-568.19,0.00022555,2]
[368889178,1751385045645,-486.05,0.00022556,2]
[368889179,1751385045655,-813.8,0.00022556,2]
[368889180,1751385045665,-465.37,0.00022556,2]
[368889181,1751385045675,-607.82,0.00022556,2]
[368889182,1751385045684,-460.0,0.00022556,2]
[368889183,1751385045694,-460.0,0.00022556,2]
[368889184,1751385045703,-232.70108794,0.00022557,2]
[368889185,1751385045712,-491.05630435,0.0002259,7]
[368889186,1751385045722,-306.0,0.00022594,2]
[368889187,1751385045732,-306.0,0.00022729,2]
[368889188,1751385045741,-5000.0,0.00022751,2]
[368889189,1751385045752,-460.0,0.0002278,2]
[368889190,1751385045761,-460.0,0.0002278,2]
[368889191,1751385045776,-460.0,0.0002278,2]
[368889192,1751385045785,-510.31784457,0.0002278,2]
[368889193,1751385045795,-460.0,0.0002278,2]
[368889194,1751385045805,-460.0,0.0002278,2]
[368889195,1751385045815,-491.05630435,0.00022797,7]
[368889196,1751385045825,-1000.0,0.00022821,2]
[368889197,1751385045834,-1000.0,0.00022821,2]
[368889198,1751385045844,-1001.7236066,0.00022821,2]
[368889200,1751385045853,-1000.0,0.00022821,2]
[368889201,1751385045862,-612.34,0.00022829,2]
[368889202,1751385045872,-568.19,0.00022829,2]
[368889203,1751385045881,-486.05,0.0002283,2]
[368889204,1751385045891,-813.8,0.0002283,2]
[368889205,1751385045901,-465.37,0.0002283,2]
[368889206,1751385045910,-607.82,0.0002283,2]
[368889207,1751385045919,-460.0,0.0002283,2]
[368889209,1751385045929,-460.0,0.0002283,2]
[368889211,1751385045938,-12649.16760003,0.0002285,2]
[368889213,1751385045947,-151.0,0.000229,9]
[368889215,1751385045957,-460.0,0.00022949,2]
[368889216,1751385045966,-500.0,0.00022949,2]
[368889217,1751385045975,-338.57940338,0.0002295,2]
[368889218,1751385045985,-345.08182628,0.0002295,2]
[368889219,1751385045994,-583.93090182,0.0002295,2]
[368889220,1751385046004,-460.0,0.0002295,2]
[368889221,1751385046014,-460.0,0.0002295,2]
[368889222,1751385046023,-460.0,0.0002295,2]
[368889223,1751385046033,-460.0,0.0002295,2]
[368889224,1751385046043,-460.0,0.0002295,2]
[368889225,1751385046053,-460.0,0.0002295,2]
[368889226,1751385046062,-460.0,0.0002295,2]
[368889227,1751385046071,-460.0,0.0002295,2]
[368889228,1751385046081,-460.0,0.0002295,2]
[368889229,1751385046090,-460.0,0.0002295,2]
[368889230,1751385046100,-460.0,0.0002295,2]
[368889231,1751385046109,-455.0,0.0002295,2]
[368889232,1751385046118,-460.0,0.0002295,2]
[368889233,1751385046128,-460.0,0.0002295,2]
[368889234,1751385046137,-464.64,0.0002295,2]
[368889235,1751385046147,-460.0,0.0002295,2]
[368889236,1751385046156,-377.43223011,0.0002295,2]
[368889237,1751385046166,-460.0,0.0002295,2]
[368889238,1751385046176,-460.0,0.0002295,2]
[368889239,1751385046185,-460.0,0.0002295,2]
[368889240,1751385046195,-460.0,0.0002295,2]
[368889241,1751385046205,-460.0,0.0002295,2]
[368889242,1751385046215,-460.0,0.0002295,2]
[368889243,1751385046225,-460.0,0.0002295,2]
[368889244,1751385046235,-460.0,0.0002295,2]
[368889245,1751385046245,-460.0,0.0002295,2]
[368889246,1751385046255,-306.0,0.00022995,2]
[368889247,1751385046265,-1000.0,0.00023,23]
[368889248,1751385046274,-491.05630435,0.00023003,8]
[368889249,1751385046284,-460.0,0.00023054,2]
[368889250,1751385046293,-460.0,0.00023054,2]
[368889251,1751385046303,-500.0,0.00023054,2]
[368889252,1751385046313,-558.64301515,0.00023054,2]
[368889253,1751385046324,-612.34,0.00023103,2]
[368889254,1751385046333,-568.19,0.00023103,2]
[368889255,1751385046343,-486.05,0.00023104,2]
[368889256,1751385046353,-813.8,0.00023104,2]
[368889257,1751385046362,-465.37,0.00023104,2]
[368889258,1751385046372,-607.82,0.00023104,2]
[368889259,1751385046381,-460.0,0.00023104,2]
[368889260,1751385046391,-460.0,0.00023104,2]
[368889261,1751385046401,-169.0446336,0.00023123,2]
[368889262,1751385046410,-279.0,0.0002317,2]
[368889263,1751385046419,-500.0,0.00023183,2]
[368889264,1751385046429,-491.05630435,0.0002321,8]
[368889265,1751385046438,-500.0,0.00023222,2]
[368889266,1751385046447,-500.0,0.00023223,2]
[368889267,1751385046484,-390.08912063,0.00023223,2]
[368889268,1751385046495,-460.0,0.00023223,2]
[368889269,1751385046504,-500.0,0.00023223,2]
[368889270,1751385046514,-460.0,0.00023223,2]
[368889271,1751385046524,-460.0,0.00023223,2]
[368889272,1751385046533,-460.0,0.00023223,2]
[368889273,1751385046543,-460.0,0.00023223,2]
[368889274,1751385046552,-460.0,0.00023223,2]
[368889275,1751385046562,-460.0,0.00023223,2]
[368889276,1751385046571,-460.0,0.00023223,2]
[368889277,1751385046581,-460.0,0.00023223,2]
[368889278,1751385046590,-461.54249329,0.00023223,2]
[368889279,1751385046600,-460.0,0.00023223,2]
[368889280,1751385046609,-460.0,0.00023223,2]
[368889281,1751385046618,-460.0,0.00023223,2]
[368889282,1751385046627,-460.0,0.00023223,2]
[368889283,1751385046638,-836.96,0.00023223,2]
[368889284,1751385046647,-460.0,0.00023223,2]
[368889285,1751385046656,-460.0,0.00023223,2]
[368889286,1751385046666,-460.0,0.00023223,2]
[368889287,1751385046675,-460.0,0.00023223,2]
[368889288,1751385046684,-460.0,0.00023223,2]
[368889289,1751385046693,-460.0,0.00023223,2]
[368889290,1751385046702,-460.0,0.00023223,2]
[368889291,1751385046712,-306.0,0.00023224,2]
[368889292,1751385046721,-336.0004877,0.00023224,2]
[368889293,1751385046731,-460.0,0.00023224,2]
[368889294,1751385046741,-460.0,0.00023224,2]
[368889295,1751385046752,-460.0,0.00023224,2]
[368889296,1751385046764,-306.0,0.00023241,2]
[368889297,1751385046773,-168.77830619,0.00023262,2]
[368889298,1751385046782,-546.13420903,0.0002329,4]
[368889299,1751385046792,-546.13420903,0.0002329,4]
[368889300,1751385046802,-546.13420903,0.0002329,4]
[368889301,1751385046811,-546.13420903,0.0002329,4]
[368889302,1751385046820,-546.13420903,0.0002329,4]
[368889303,1751385046831,-546.13420903,0.0002329,4]
[368889305,1751385046840,-546.13420903,0.0002329,4]
[368889306,1751385046850,-546.13420903,0.0002329,4]
[368889309,1751385046860,-546.13420903,0.0002329,4]
[368889310,1751385046869,-546.13420903,0.0002329,4]
[368889311,1751385046879,-546.13420903,0.0002329,4]
[368889312,1751385046888,-546.13420903,0.0002329,4]
[368889314,1751385046898,-546.13420903,0.0002329,4]
[368889316,1751385046908,-546.13420903,0.0002329,4]
[368889318,1751385046918,-546.13420903,0.0002329,4]
[368889320,1751385046928,-546.13420903,0.0002329,4]
[368889322,1751385046937,-546.13420903,0.0002329,4]
[368889324,1751385046947,-546.13420903,0.0002329,4]
[368889326,1751385046956,-546.13420903,0.0002329,4]
[368889328,1751385046966,-546.13,0.0002329,4]
[368889330,1751385046975,-1274.31315441,0.0002329,4]
[368889332,1751385046985,-1274.31315441,0.0002329,4]
[368889334,1751385046994,-1274.31315441,0.0002329,4]
[368889336,1751385047005,-1274.31315441,0.0002329,4]
[368889338,1751385047014,-1274.31315441,0.0002329,4]
[368889340,1751385047023,-1274.31315441,0.0002329,4]
[368889342,1751385047032,-1274.31315441,0.0002329,4]
[368889344,1751385047042,-1274.31315441,0.0002329,4]
[368889346,1751385047052,-1274.31315441,0.0002329,4]
[368889348,1751385047061,-1274.31315441,0.0002329,4]
[368889350,1751385047071,-1274.31315441,0.0002329,4]
[368889352,1751385047081,-1274.31315441,0.0002329,4]
[368889354,1751385047090,-1274.31315441,0.0002329,4]
[368889356,1751385047100,-150.09964673,0.0002329,4]
[368889358,1751385047109,-150.09964673,0.0002329,4]
[368889360,1751385047119,-150.09964673,0.0002329,4]
[368889362,1751385047128,-150.09964673,0.0002329,4]
[368889364,1751385047138,-150.09964673,0.0002329,4]
[368889366,1751385047146,-150.09964673,0.0002329,4]
[368889368,1751385047156,-150.09964673,0.0002329,4]
[368889370,1751385047166,-150.09964673,0.0002329,4]
[368889372,1751385047175,-150.09964673,0.0002329,4]
[368889374,1751385047183,-150.09964673,0.0002329,4]
[368889376,1751385047193,-150.09964673,0.0002329,4]
[368889378,1751385047202,-150.09964673,0.0002329,4]
[368889380,1751385047211,-150.09964673,0.0002329,4]
[368889382,1751385047221,-150.09964673,0.0002329,4]
[368889384,1751385047230,-150.09964673,0.0002329,4]
[368889386,1751385047239,-150.09964673,0.0002329,4]
[368889388,1751385047248,-150.09964673,0.0002329,4]
[368889390,1751385047257,-150.09964673,0.0002329,4]
[368889392,1751385047266,-150.09964673,0.0002329,4]
[368889394,1751385047275,-150.09,0.0002329,4]
[368889396,1751385047284,-350.23250903,0.0002329,4]
[368889398,1751385047294,-350.23250903,0.0002329,4]
[368889400,1751385047304,-350.23250903,0.0002329,4]
[368889402,1751385047314,-350.23250903,0.0002329,4]
[368889404,1751385047323,-350.23250903,0.0002329,4]
[368889406,1751385047333,-350.23250903,0.0002329,4]
[368889408,1751385047343,-350.23250903,0.0002329,4]
[368889410,1751385047353,-350.23250903,0.0002329,4]
[368889412,1751385047363,-350.23250903,0.0002329,4]
[368889414,1751385047372,-350.23250903,0.0002329,4]
[368889417,1751385047382,-350.23250903,0.0002329,4]
[368889418,1751385047394,-350.23250903,0.0002329,4]
[368889421,1751385047406,-350.23250903,0.0002329,4]
[368889423,1751385047416,-298.30406933,0.0002329,4]
[368889425,1751385047426,-298.30406933,0.0002329,4]
[368889427,1751385047435,-298.30406933,0.0002329,4]
[368889429,1751385047444,-298.30406933,0.0002329,4]
[368889431,1751385047454,-298.30406933,0.0002329,4]
[368889433,1751385047464,-298.30406933,0.0002329,4]
[368889435,1751385047474,-298.30406933,0.0002329,4]
[368889437,1751385047485,-298.30406933,0.0002329,4]
[368889439,1751385047494,-298.30406933,0.0002329,4]
[368889441,1751385047503,-298.30406933,0.0002329,4]
[368889443,1751385047513,-298.30406933,0.0002329,4]
[368889445,1751385047523,-298.30406933,0.0002329,4]
[368889447,1751385047533,-298.30406933,0.0002329,4]
[368889449,1751385047542,-298.30406933,0.0002329,4]
[368889451,1751385047552,-298.30406933,0.0002329,4]
[368889453,1751385047561,-298.30406933,0.0002329,4]
[368889455,1751385047571,-298.30406933,0.0002329,4]
[368889457,1751385047581,-298.30406933,0.0002329,4]
[368889459,1751385047591,-298.30406933,0.0002329,4]
[368889461,1751385047601,-298.3,0.0002329,4]
[368889463,1751385047610,-696.04282844,0.0002329,4]
[368889465,1751385047620,-696.04282844,0.0002329,4]
[368889467,1751385047630,-696.04282844,0.0002329,4]
[368889469,1751385047640,-696.04282844,0.0002329,4]
[368889471,1751385047650,-696.04282844,0.0002329,4]
[368889473,1751385047659,-696.04282844,0.0002329,4]
[368889475,1751385047669,-696.04282844,0.0002329,4]
[368889477,1751385047679,-696.04282844,0.0002329,4]
[368889479,1751385047688,-696.04282844,0.0002329,4]
[368889481,1751385047698,-696.04282844,0.0002329,4]
[368889483,1751385047707,-696.04282844,0.0002329,4]
[368889484,1751385047717,-696.04282844,0.0002329,4]
[368889485,1751385047728,-696.04282844,0.0002329,4]
[368889486,1751385047737,-1274.31315441,0.00023312,4]
[368889487,1751385047747,-350.23250903,0.00023312,4]
[368889488,1751385047757,-696.04282844,0.00023312,4]
[368889489,1751385047768,-500.0,0.00023368,2]
[368889490,1751385047779,-500.0,0.00023368,2]
[368889491,1751385047789,-612.34,0.00023377,2]
[368889492,1751385047798,-568.19,0.00023377,2]
[368889493,1751385047809,-486.05,0.00023378,2]
[368889494,1751385047819,-813.8,0.00023378,2]
[368889495,1751385047829,-465.37,0.00023378,2]
[368889496,1751385047839,-607.82,0.00023378,2]
[368889497,1751385047848,-460.0,0.00023378,2]
[368889498,1751385047859,-344.89545496,0.00023378,2]
[368889499,1751385047868,-306.0,0.00023397,2]
[368889500,1751385047877,-491.05630435,0.00023417,9]
[368889501,1751385047887,-253.0351819,0.00023497,2]
[368889503,1751385047897,-460.0,0.00023497,2]
[368889504,1751385047906,-460.0,0.00023497,2]
[368889506,1751385047915,-455.62823303,0.00023497,2]
[368889508,1751385047925,-409.43,0.00023497,2]
[368889510,1751385047935,-460.0,0.00023497,2]
[368889512,1751385047944,-361.81,0.00023497,2]
[368889514,1751385047954,-836.96,0.00023497,2]
[368889516,1751385047963,-460.0,0.00023497,2]
[368889518,1751385047972,-460.0,0.00023497,2]
[368889520,1751385047982,-460.0,0.00023497,2]
[368889522,1751385047992,-460.0,0.00023497,2]
[368889524,1751385048001,-460.0,0.00023498,2]
[368889526,1751385048011,-4395.16,0.000235,7]
[368889528,1751385048020,-1274.31315441,0.0002356,4]
[368889530,1751385048030,-350.23250903,0.0002356,4]
[368889532,1751385048039,-696.04282844,0.0002356,4]
[368889534,1751385048048,-215.0738,0.00023572,2]
[368889536,1751385048058,-500.0,0.0002358,2]
[368889538,1751385048068,-500.0,0.00023616,2]
[368889540,1751385048078,-491.05630435,0.00023624,9]
[368889542,1751385048088,-164.87932813,0.00023644,2]
[368889544,1751385048098,-612.34,0.00023651,2]
[368889546,1751385048108,-568.19,0.00023651,2]
[368889548,1751385048118,-486.05,0.00023652,2]
[368889551,1751385048129,-813.8,0.00023652,2]
[368889553,1751385048139,-465.37,0.00023652,2]
[368889555,1751385048149,-607.82,0.00023652,2]
[368889557,1751385048158,-460.0,0.00023652,2]
[368889559,1751385048168,-460.0,0.00023771,2]
[368889561,1751385048179,-500.0,0.00023771,2]
[368889563,1751385048188,-836.96,0.00023771,2]
[368889565,1751385048197,-460.0,0.00023771,2]
[368889567,1751385048207,-460.0,0.00023771,2]
[368889569,1751385048216,-460.0,0.00023771,2]
[368889571,1751385048226,-460.0,0.00023771,2]
[368889573,1751385048235,-460.0,0.00023772,2]
[368889575,1751385048245,-500.0,0.00023786,2]
[368889577,1751385048255,-469.34,0.00023787,2]
[368889579,1751385048265,-469.86007187,0.00023787,2]
[368889581,1751385048274,-460.0,0.00023787,2]
[368889583,1751385048284,-460.0,0.00023787,2]
[368889585,1751385048294,-460.0,0.00023787,2]
[368889588,1751385048303,-460.0,0.00023787,2]
[368889590,1751385048312,-460.0,0.00023787,2]
[368889592,1751385048322,-485.61,0.00023787,2]
[368889594,1751385048332,-500.0,0.00023787,2]
[368889596,1751385048341,-460.0,0.00023787,2]
[368889598,1751385048351,-665.81,0.00023787,2]
[368889600,1751385048360,-468.95977601,0.00023787,2]
[368889602,1751385048369,-460.0,0.00023787,2]
[368889604,1751385048379,-460.0,0.00023787,2]
[368889606,1751385048389,-460.0,0.00023788,2]
[368889608,1751385048399,-460.0,0.00023788,2]
[368889610,1751385048409,-973.075,0.00023789,2]
[368889612,1751385048419,-654.0,0.00023789,2]
[368889614,1751385048429,-2151.0,0.00023789,2]
[368889616,1751385048439,-406.0,0.00023789,2]
[368889618,1751385048449,-1274.31315441,0.00023808,4]
[368889620,1751385048459,-350.23250903,0.00023808,4]
[368889622,1751385048469,-696.04282844,0.00023808,4]
[368889624,1751385048479,-164.87932813,0.00023808,2]
[368889626,1751385048492,-500.0,0.00023811,2]
[368889628,1751385048505,-458.03875855,0.00023812,2]
[368889630,1751385048516,-460.49459647,0.00023812,2]
[368889632,1751385048526,-310.0,0.00023812,2]
[368889634,1751385048536,-460.0,0.00023812,2]
[368889636,1751385048546,-460.0,0.00023812,2]
[368889638,1751385048556,-460.0,0.00023812,2]
[368889640,1751385048566,-460.0,0.00023812,2]
[368889642,1751385048576,-304.75906884,0.00023812,2]
[368889644,1751385048586,-460.0,0.00023812,2]
[368889647,1751385048597,-437.51017621,0.00023812,2]
[368889648,1751385048606,-460.0,0.00023812,2]
[368889651,1751385048616,-460.0,0.00023812,2]
[368889653,1751385048626,-460.06531162,0.00023812,2]
[368889655,1751385048636,-460.0,0.00023812,2]
[368889657,1751385048645,-491.05630435,0.00023831,10]
[368889659,1751385048656,-2276.98383254,0.0002384,2]
[368889661,1751385048666,-612.34,0.00023925,2]
[368889663,1751385048675,-568.19,0.00023925,2]
[368889665,1751385048685,-486.05,0.00023926,2]
[368889667,1751385048695,-813.8,0.00023926,2]
[368889669,1751385048704,-465.37,0.00023926,2]
[368889671,1751385048713,-607.82,0.00023926,2]
[368889673,1751385048723,-460.0,0.00023926,2]
[368889675,1751385048733,-156.20146876,0.00023973,2]
[368889677,1751385048743,-164.87932813,0.00023973,2]
[368889679,1751385048755,-1000.0,0.00024,24]
[368889681,1751385048766,-1058.22,0.00024,7]
[368889683,1751385048776,-36591.05,0.00024,7]
[368889685,1751385048786,-160.0,0.00024,7]
[368889687,1751385048795,-160.0,0.00024,7]
[368889689,1751385048806,-837.20943635,0.00024,7]
[368889691,1751385048816,-837.20943635,0.00024,7]
[368889693,1751385048826,-230.32585361,0.00024,7]
[368889695,1751385048836,-230.32585361,0.00024,7]
[368889697,1751385048847,-160.0,0.00024,7]
[368889699,1751385048856,-524.61914904,0.00024,3]
[368889701,1751385048866,-491.05630435,0.00024038,10]
[368889703,1751385048876,-460.0,0.00024045,2]
[368889705,1751385048887,-836.96,0.00024045,2]
[368889707,1751385048898,-460.0,0.00024045,2]
[368889709,1751385048908,-543.88,0.00024045,2]
[368889711,1751385048917,-460.0,0.00024045,2]
[368889713,1751385048927,-460.0,0.00024045,2]
[368889715,1751385048937,-460.0,0.00024046,2]
[368889717,1751385048947,-1274.31315441,0.00024056,4]
[368889719,1751385048956,-350.23250903,0.00024056,4]
[368889721,1751385048966,-696.04282844,0.00024056,4]
[368889724,1751385048981,-460.0,0.00024061,2]
[368889726,1751385048991,-460.0,0.00024061,2]
[368889728,1751385049001,-460.0,0.00024061,2]
[368889730,1751385049012,-500.0,0.00024061,2]
[368889732,1751385049022,-460.0,0.00024061,2]
[368889734,1751385049033,-665.81,0.00024061,2]
[368889736,1751385049044,-460.0,0.00024061,2]
[368889738,1751385049055,-460.0,0.00024086,2]
[368889740,1751385049066,-460.0,0.00024086,2]
[368889742,1751385049077,-164.87932813,0.00024137,2]
[368889744,1751385049087,-306.0,0.00024137,2]